Workbook

Sheet Descrição Geral da Festa
B3: Descrição Geral da Festa
B6: EVENTO | D6: RESUMO DE CONVIDADOS | H6: ="CONFIRMAÇÕES PENDENTES: "&ConfirmaçõesPendentes -> CONFIRMAÇÕES PENDENTES: 2
B7: 75º Aniversário da Avó | D7: DESCRIÇÃO GERAL DO RESPONDER S. F. F. | F7: CUSTOS POR CONVIDADO | H7: QUANTIA DO ORÇAMENTO
D8: Convidados Confirmados | E8: Total de Confirmados | F8: Comida | G8: Outros | H8: Total
B9: DATA | D9: Adultos | E9: =SUMIF(TabelaConvidados[A COMPARECER?],"=Sim",TabelaConvidados[ADULTOS]) -> 26 | F9: =TabelaComida[[#Totals],[CUSTO POR ADULTO]] -> 12.69 € | G9: =CustoEssencialPorConvidado -> 18.70 € | H9: =(ResumoParticipantes[[#This Row],[Comida]]+ResumoParticipantes[[#This Row],[Outros]])*TotalAdultos -> 816.03 €
B10: 14 De Junho De 2011 | D10: Crianças | E10: =SUMIF(TabelaConvidados[A COMPARECER?],"=Sim",TabelaConvidados[CRIANÇAS]) -> 20 | F10: =TabelaComida[[#Totals],[CUSTO POR CRIANÇA]] -> 7.25 € | G10: =CustoEssencialPorConvidado -> 18.70 € | H10: =(ResumoParticipantes[[#This Row],[Comida]]+ResumoParticipantes[[#This Row],[Outros]])*TotalCrianças -> 518.97 €
D11: Total | E11: =SUBTOTAL(109,ResumoParticipantes[Total de Confirmados]) -> 46 | F11: ="Méd. "&TEXT(SUBTOTAL(101,ResumoParticipantes[Comida]),"#.##0,00 €") -> Méd. 9,97 € | G11: ="Méd. "&TEXT(SUBTOTAL(101,ResumoParticipantes[Outros]),"#.##0,00 €") -> Méd. 18,70 € | H11: =SUBTOTAL(109,ResumoParticipantes[Total]) -> 1,335.00 €
B12: HORA
B13: Das 14:00 às 16:00
B15: LOCALIZAÇÃO | D15: RESUMO DO ORÇAMENTO
B16: Casa da tia Paula | D16: ITEM | E16: CONTAGEM | F16: QUANTIA DO ORÇAMENTO | G16: CUSTO TOTAL | H16: DIFERENÇA
D17: Comida e Bebida | E17: =COUNTA(TabelaComida[ITEM DE COMIDA OU BEBIDA]) -> 18 | F17: 500.00 € | G17: =TabelaComida[[#Totals],[CUSTO TOTAL]] -> 475.00 € | H17: =DescriçãoGeralOrçamento[[#This Row],[QUANTIA DO ORÇAMENTO]]-DescriçãoGeralOrçamento[[#This Row],[CUSTO TOTAL]] -> 25.00 €
D18: =Tabela1Cabeçalho -> Equipamento e Consumíveis | E18: =COUNTA(Tabela1Orçamento[Equipamento e Consumíveis]) -> 7 | F18: 400.00 € | G18: =Tabela1Orçamento[[#Totals],[Custo]] -> 400.00 € | H18: =DescriçãoGeralOrçamento[[#This Row],[QUANTIA DO ORÇAMENTO]]-DescriçãoGeralOrçamento[[#This Row],[CUSTO TOTAL]] -> 0.00 €
D19: =Tabela2Cabeçalho -> Decorações | E19: =COUNTA(Tabela2Orçamento[Decorações]) -> 4 | F19: 150.00 € | G19: =Tabela2Orçamento[[#Totals],[Custo]] -> 175.00 € | H19: =DescriçãoGeralOrçamento[[#This Row],[QUANTIA DO ORÇAMENTO]]-DescriçãoGeralOrçamento[[#This Row],[CUSTO TOTAL]] -> -25.00 €
D20: =Tabela3Cabeçalho -> Outros | E20: =COUNTA(Tabela3Orçamento[Outros]) -> 4 | F20: 300.00 € | G20: =Tabela3Orçamento[[#Totals],[Custo]] -> 285.00 € | H20: =DescriçãoGeralOrçamento[[#This Row],[QUANTIA DO ORÇAMENTO]]-DescriçãoGeralOrçamento[[#This Row],[CUSTO TOTAL]] -> 15.00 €
D21: Total | E21: =SUBTOTAL(109,DescriçãoGeralOrçamento[CONTAGEM]) -> 33 | F21: =SUBTOTAL(109,DescriçãoGeralOrçamento[QUANTIA DO ORÇAMENTO]) -> 1,350.00 € | G21: =SUBTOTAL(109,DescriçãoGeralOrçamento[CUSTO TOTAL]) -> 1,335.00 € | H21: =SUBTOTAL(109,DescriçãoGeralOrçamento[DIFERENÇA]) -> 15.00 €

Sheet Lista de Convidados
B3: Lista de Convidados
B7: NOME | C7: MORADA | D7: LOCALIDADE | E7: DISTRITO | F7: CÓDIGO POSTAL | G7: TELEFONE | H7: CORREIO ELETRÓNICO | I7: A COMPARECER? | J7: CRIANÇAS | K7: ADULTOS | L7: TOTAL
B8: Família 1 | C8: Morada 1 | D8: Localidade 1 | E8: Distrito 1 | F8: Código Postal 1 | G8: Telefone 1 | H8: Correio eletrónico 1 | I8: Não | J8: 2 | K8: 2 | L8: =SUM(TabelaConvidados[[#This Row],[CRIANÇAS]:[ADULTOS]]) -> 4
B9: Família 2 | C9: Morada 2 | D9: Localidade 2 | E9: Distrito 2 | F9: Código Postal 2 | G9: Telefone 2 | H9: Correio eletrónico 2 | I9: Sim | J9: 1 | K9: 1 | L9: =SUM(TabelaConvidados[[#This Row],[CRIANÇAS]:[ADULTOS]]) -> 2
B10: Família 3 | C10: Morada 3 | D10: Localidade 3 | E10: Distrito 3 | F10: Código Postal 3 | G10: Telefone 3 | H10: Correio eletrónico 3 | I10: Sim | J10: 3 | K10: 3 | L10: =SUM(TabelaConvidados[[#This Row],[CRIANÇAS]:[ADULTOS]]) -> 6
B11: Família 4 | C11: Morada 4 | D11: Localidade 4 | E11: Distrito 4 | F11: Código Postal 4 | G11: Telefone 4 | H11: Correio eletrónico 4 | K11: 2 | L11: =SUM(TabelaConvidados[[#This Row],[CRIANÇAS]:[ADULTOS]]) -> 2
B12: Família 5 | C12: Morada 5 | D12: Localidade 5 | E12: Distrito 5 | F12: Código Postal 5 | G12: Telefone 5 | H12: Correio eletrónico 5 | I12: Sim | J12: 4 | K12: 3 | L12: =SUM(TabelaConvidados[[#This Row],[CRIANÇAS]:[ADULTOS]]) -> 7
B13: Família 6 | C13: Morada 6 | D13: Localidade 6 | E13: Distrito 6 | F13: Código Postal 6 | G13: Telefone 6 | H13: Correio eletrónico 6 | I13: Sim | J13: 2 | K13: 2 | L13: =SUM(TabelaConvidados[[#This Row],[CRIANÇAS]:[ADULTOS]]) -> 4
B14: Família 7 | C14: Morada 7 | D14: Localidade 7 | E14: Distrito 7 | F14: Código Postal 7 | G14: Telefone 7 | H14: Correio eletrónico 7 | I14: Sim | J14: 1 | K14: 4 | L14: =SUM(TabelaConvidados[[#This Row],[CRIANÇAS]:[ADULTOS]]) -> 5
B15: Família 8 | C15: Morada 8 | D15: Localidade 8 | E15: Distrito 8 | F15: Código Postal 8 | G15: Telefone 8 | H15: Correio eletrónico 8 | I15: Não | J15: 5 | K15: 3 | L15: =SUM(TabelaConvidados[[#This Row],[CRIANÇAS]:[ADULTOS]]) -> 8
B16: Família 9 | C16: Morada 9 | D16: Localidade 9 | E16: Distrito 9 | F16: Código Postal 9 | G16: Telefone 9 | H16: Correio eletrónico 9 | I16: Sim | J16: 3 | K16: 2 | L16: =SUM(TabelaConvidados[[#This Row],[CRIANÇAS]:[ADULTOS]]) -> 5
B17: Família 10 | C17: Morada 10 | D17: Localidade 10 | E17: Distrito 10 | F17: Código Postal 10 | G17: Telefone 10 | H17: Correio eletrónico 10 | I17: Sim | K17: 4 | L17: =SUM(TabelaConvidados[[#This Row],[CRIANÇAS]:[ADULTOS]]) -> 4
B18: Família 11 | C18: Morada 11 | D18: Localidade 11 | E18: Distrito 11 | F18: Código Postal 11 | G18: Telefone 11 | H18: Correio eletrónico 11 | I18: Sim | J18: 3 | K18: 5 | L18: =SUM(TabelaConvidados[[#This Row],[CRIANÇAS]:[ADULTOS]]) -> 8
B19: Família 12 | C19: Morada 12 | D19: Localidade 12 | E19: Distrito 12 | F19: Código Postal 12 | G19: Telefone 12 | H19: Correio eletrónico 12 | I19: Não | J19: 2 | K19: 3 | L19: =SUM(TabelaConvidados[[#This Row],[CRIANÇAS]:[ADULTOS]]) -> 5
B20: Família 13 | C20: Morada 13 | D20: Localidade 13 | E20: Distrito 13 | F20: Código Postal 13 | G20: Telefone 13 | H20: Correio eletrónico 13 | I20: Sim | J20: 3 | K20: 2 | L20: =SUM(TabelaConvidados[[#This Row],[CRIANÇAS]:[ADULTOS]]) -> 5
B21: Família 14 | C21: Morada 14 | D21: Localidade 14 | E21: Distrito 14 | F21: Código Postal 14 | G21: Telefone 14 | H21: Correio eletrónico 14 | I21: Não | K21: 1 | L21: =SUM(TabelaConvidados[[#This Row],[CRIANÇAS]:[ADULTOS]]) -> 1
B22: Família 15 | C22: Morada 15 | D22: Localidade 15 | E22: Distrito 15 | F22: Código Postal 15 | G22: Telefone 15 | H22: Correio eletrónico 15 | K22: 2 | L22: =SUM(TabelaConvidados[[#This Row],[CRIANÇAS]:[ADULTOS]]) -> 2

Sheet Comida e Bebida
B3: Comida e Bebida
B5: Introduza o custo e as porções estimadas para calcular automaticamente o total de peças e o custo por porção, com base no total de convidados presentes
B6: ITEM DE COMIDA OU BEBIDA | C6: CUSTO TOTAL | D6: PORÇÃO POR CRIANÇA | E6: PORÇÃO POR ADULTO | F6: TOTAL DE PORÇÕES | G6: CUSTO POR PORÇÃO | H6: CUSTO POR CRIANÇA | I6: CUSTO POR ADULTO | J6: NOTAS
B7: Refrigerantes | C7: 15.00 € | D7: 0.5 | E7: 2 | F7: =(TabelaComida[[#This Row],[PORÇÃO POR CRIANÇA]]*TotalCrianças)+(TabelaComida[[#This Row],[PORÇÃO POR ADULTO]]*TotalAdultos) -> 62 | G7: =IFERROR(TabelaComida[[#This Row],[CUSTO TOTAL]]/TabelaComida[[#This Row],[TOTAL DE PORÇÕES]],"") -> 0.24 € | H7: =IFERROR(TabelaComida[[#This Row],[CUSTO POR PORÇÃO]]*TabelaComida[[#This Row],[PORÇÃO POR CRIANÇA]],"") -> 0.12 € | I7: =IFERROR(TabelaComida[[#This Row],[CUSTO POR PORÇÃO]]*TabelaComida[[#This Row],[PORÇÃO POR ADULTO]],"") -> 0.48 € | J7: Garrafas de 2 litros
B8: Pacotes de sumo | C8: 15.00 € | D8: 2 | E8: 0 | F8: =(TabelaComida[[#This Row],[PORÇÃO POR CRIANÇA]]*TotalCrianças)+(TabelaComida[[#This Row],[PORÇÃO POR ADULTO]]*TotalAdultos) -> 40 | G8: =IFERROR(TabelaComida[[#This Row],[CUSTO TOTAL]]/TabelaComida[[#This Row],[TOTAL DE PORÇÕES]],"") -> 0.38 € | H8: =IFERROR(TabelaComida[[#This Row],[CUSTO POR PORÇÃO]]*TabelaComida[[#This Row],[PORÇÃO POR CRIANÇA]],"") -> 0.75 € | I8: =IFERROR(TabelaComida[[#This Row],[CUSTO POR PORÇÃO]]*TabelaComida[[#This Row],[PORÇÃO POR ADULTO]],"") -> 0.00 € | J8: Maçãs e uvas brancas
B9: Vinho | C9: 50.00 € | D9: 0 | E9: 2 | F9: =(TabelaComida[[#This Row],[PORÇÃO POR CRIANÇA]]*TotalCrianças)+(TabelaComida[[#This Row],[PORÇÃO POR ADULTO]]*TotalAdultos) -> 52 | G9: =IFERROR(TabelaComida[[#This Row],[CUSTO TOTAL]]/TabelaComida[[#This Row],[TOTAL DE PORÇÕES]],"") -> 0.96 € | H9: =IFERROR(TabelaComida[[#This Row],[CUSTO POR PORÇÃO]]*TabelaComida[[#This Row],[PORÇÃO POR CRIANÇA]],"") -> 0.00 € | I9: =IFERROR(TabelaComida[[#This Row],[CUSTO POR PORÇÃO]]*TabelaComida[[#This Row],[PORÇÃO POR ADULTO]],"") -> 1.92 €
B10: Bolo | C10: 75.00 € | D10: 1 | E10: 1 | F10: =(TabelaComida[[#This Row],[PORÇÃO POR CRIANÇA]]*TotalCrianças)+(TabelaComida[[#This Row],[PORÇÃO POR ADULTO]]*TotalAdultos) -> 46 | G10: =IFERROR(TabelaComida[[#This Row],[CUSTO TOTAL]]/TabelaComida[[#This Row],[TOTAL DE PORÇÕES]],"") -> 1.63 € | H10: =IFERROR(TabelaComida[[#This Row],[CUSTO POR PORÇÃO]]*TabelaComida[[#This Row],[PORÇÃO POR CRIANÇA]],"") -> 1.63 € | I10: =IFERROR(TabelaComida[[#This Row],[CUSTO POR PORÇÃO]]*TabelaComida[[#This Row],[PORÇÃO POR ADULTO]],"") -> 1.63 € | J10: Encomendar na padaria local
B11: Gelado | C11: 20.00 € | D11: 1 | E11: 1.5 | F11: =(TabelaComida[[#This Row],[PORÇÃO POR CRIANÇA]]*TotalCrianças)+(TabelaComida[[#This Row],[PORÇÃO POR ADULTO]]*TotalAdultos) -> 59 | G11: =IFERROR(TabelaComida[[#This Row],[CUSTO TOTAL]]/TabelaComida[[#This Row],[TOTAL DE PORÇÕES]],"") -> 0.34 € | H11: =IFERROR(TabelaComida[[#This Row],[CUSTO POR PORÇÃO]]*TabelaComida[[#This Row],[PORÇÃO POR CRIANÇA]],"") -> 0.34 € | I11: =IFERROR(TabelaComida[[#This Row],[CUSTO POR PORÇÃO]]*TabelaComida[[#This Row],[PORÇÃO POR ADULTO]],"") -> 0.51 €
B12: Taças de pudim | C12: 15.00 € | D12: 1 | E12: 0 | F12: =(TabelaComida[[#This Row],[PORÇÃO POR CRIANÇA]]*TotalCrianças)+(TabelaComida[[#This Row],[PORÇÃO POR ADULTO]]*TotalAdultos) -> 20 | G12: =IFERROR(TabelaComida[[#This Row],[CUSTO TOTAL]]/TabelaComida[[#This Row],[TOTAL DE PORÇÕES]],"") -> 0.75 € | H12: =IFERROR(TabelaComida[[#This Row],[CUSTO POR PORÇÃO]]*TabelaComida[[#This Row],[PORÇÃO POR CRIANÇA]],"") -> 0.75 € | I12: =IFERROR(TabelaComida[[#This Row],[CUSTO POR PORÇÃO]]*TabelaComida[[#This Row],[PORÇÃO POR ADULTO]],"") -> 0.00 € | J12: Pacotes de compra: baunilha e chocolate
B13: Cogumelos recheados | C13: 32.00 € | D13: 1 | E13: 2 | F13: =(TabelaComida[[#This Row],[PORÇÃO POR CRIANÇA]]*TotalCrianças)+(TabelaComida[[#This Row],[PORÇÃO POR ADULTO]]*TotalAdultos) -> 72 | G13: =IFERROR(TabelaComida[[#This Row],[CUSTO TOTAL]]/TabelaComida[[#This Row],[TOTAL DE PORÇÕES]],"") -> 0.44 € | H13: =IFERROR(TabelaComida[[#This Row],[CUSTO POR PORÇÃO]]*TabelaComida[[#This Row],[PORÇÃO POR CRIANÇA]],"") -> 0.44 € | I13: =IFERROR(TabelaComida[[#This Row],[CUSTO POR PORÇÃO]]*TabelaComida[[#This Row],[PORÇÃO POR ADULTO]],"") -> 0.89 € | J13: Cogumelos recheados com queijo creme e salsichas
B14: Bruschetta | C14: 22.00 € | D14: 0 | E14: 3 | F14: =(TabelaComida[[#This Row],[PORÇÃO POR CRIANÇA]]*TotalCrianças)+(TabelaComida[[#This Row],[PORÇÃO POR ADULTO]]*TotalAdultos) -> 78 | G14: =IFERROR(TabelaComida[[#This Row],[CUSTO TOTAL]]/TabelaComida[[#This Row],[TOTAL DE PORÇÕES]],"") -> 0.28 € | H14: =IFERROR(TabelaComida[[#This Row],[CUSTO POR PORÇÃO]]*TabelaComida[[#This Row],[PORÇÃO POR CRIANÇA]],"") -> 0.00 € | I14: =IFERROR(TabelaComida[[#This Row],[CUSTO POR PORÇÃO]]*TabelaComida[[#This Row],[PORÇÃO POR ADULTO]],"") -> 0.85 € | J14: Tomate e manjericão
B15: Salmão fumado | C15: 50.00 € | D15: 1 | E15: 2 | F15: =(TabelaComida[[#This Row],[PORÇÃO POR CRIANÇA]]*TotalCrianças)+(TabelaComida[[#This Row],[PORÇÃO POR ADULTO]]*TotalAdultos) -> 72 | G15: =IFERROR(TabelaComida[[#This Row],[CUSTO TOTAL]]/TabelaComida[[#This Row],[TOTAL DE PORÇÕES]],"") -> 0.69 € | H15: =IFERROR(TabelaComida[[#This Row],[CUSTO POR PORÇÃO]]*TabelaComida[[#This Row],[PORÇÃO POR CRIANÇA]],"") -> 0.69 € | I15: =IFERROR(TabelaComida[[#This Row],[CUSTO POR PORÇÃO]]*TabelaComida[[#This Row],[PORÇÃO POR ADULTO]],"") -> 1.39 €
B16: Pãezinhos | C16: 20.00 € | D16: 1 | E16: 2 | F16: =(TabelaComida[[#This Row],[PORÇÃO POR CRIANÇA]]*TotalCrianças)+(TabelaComida[[#This Row],[PORÇÃO POR ADULTO]]*TotalAdultos) -> 72 | G16: =IFERROR(TabelaComida[[#This Row],[CUSTO TOTAL]]/TabelaComida[[#This Row],[TOTAL DE PORÇÕES]],"") -> 0.28 € | H16: =IFERROR(TabelaComida[[#This Row],[CUSTO POR PORÇÃO]]*TabelaComida[[#This Row],[PORÇÃO POR CRIANÇA]],"") -> 0.28 € | I16: =IFERROR(TabelaComida[[#This Row],[CUSTO POR PORÇÃO]]*TabelaComida[[#This Row],[PORÇÃO POR ADULTO]],"") -> 0.56 € | J16: 4 sacos - sortido
B17: Queijo creme | C17: 10.00 € | D17: 1 | E17: 2 | F17: =(TabelaComida[[#This Row],[PORÇÃO POR CRIANÇA]]*TotalCrianças)+(TabelaComida[[#This Row],[PORÇÃO POR ADULTO]]*TotalAdultos) -> 72 | G17: =IFERROR(TabelaComida[[#This Row],[CUSTO TOTAL]]/TabelaComida[[#This Row],[TOTAL DE PORÇÕES]],"") -> 0.14 € | H17: =IFERROR(TabelaComida[[#This Row],[CUSTO POR PORÇÃO]]*TabelaComida[[#This Row],[PORÇÃO POR CRIANÇA]],"") -> 0.14 € | I17: =IFERROR(TabelaComida[[#This Row],[CUSTO POR PORÇÃO]]*TabelaComida[[#This Row],[PORÇÃO POR ADULTO]],"") -> 0.28 € | J17: 2 banheiras grandes
B18: Alcaparras | C18: 12.00 € | D18: 1 | E18: 2 | F18: =(TabelaComida[[#This Row],[PORÇÃO POR CRIANÇA]]*TotalCrianças)+(TabelaComida[[#This Row],[PORÇÃO POR ADULTO]]*TotalAdultos) -> 72 | G18: =IFERROR(TabelaComida[[#This Row],[CUSTO TOTAL]]/TabelaComida[[#This Row],[TOTAL DE PORÇÕES]],"") -> 0.17 € | H18: =IFERROR(TabelaComida[[#This Row],[CUSTO POR PORÇÃO]]*TabelaComida[[#This Row],[PORÇÃO POR CRIANÇA]],"") -> 0.17 € | I18: =IFERROR(TabelaComida[[#This Row],[CUSTO POR PORÇÃO]]*TabelaComida[[#This Row],[PORÇÃO POR ADULTO]],"") -> 0.33 € | J18: 3 frascos
B19: Asas de frango | C19: 45.00 € | D19: 2 | E19: 4 | F19: =(TabelaComida[[#This Row],[PORÇÃO POR CRIANÇA]]*TotalCrianças)+(TabelaComida[[#This Row],[PORÇÃO POR ADULTO]]*TotalAdultos) -> 144 | G19: =IFERROR(TabelaComida[[#This Row],[CUSTO TOTAL]]/TabelaComida[[#This Row],[TOTAL DE PORÇÕES]],"") -> 0.31 € | H19: =IFERROR(TabelaComida[[#This Row],[CUSTO POR PORÇÃO]]*TabelaComida[[#This Row],[PORÇÃO POR CRIANÇA]],"") -> 0.63 € | I19: =IFERROR(TabelaComida[[#This Row],[CUSTO POR PORÇÃO]]*TabelaComida[[#This Row],[PORÇÃO POR ADULTO]],"") -> 1.25 € | J19: Adquirir na loja local
B20: Paté | C20: 10.00 € | D20: 4 | E20: 6 | F20: =(TabelaComida[[#This Row],[PORÇÃO POR CRIANÇA]]*TotalCrianças)+(TabelaComida[[#This Row],[PORÇÃO POR ADULTO]]*TotalAdultos) -> 236 | G20: =IFERROR(TabelaComida[[#This Row],[CUSTO TOTAL]]/TabelaComida[[#This Row],[TOTAL DE PORÇÕES]],"") -> 0.04 € | H20: =IFERROR(TabelaComida[[#This Row],[CUSTO POR PORÇÃO]]*TabelaComida[[#This Row],[PORÇÃO POR CRIANÇA]],"") -> 0.17 € | I20: =IFERROR(TabelaComida[[#This Row],[CUSTO POR PORÇÃO]]*TabelaComida[[#This Row],[PORÇÃO POR ADULTO]],"") -> 0.25 € | J20: Fazer na noite anterior
B21: Pão de pita torrado com parmesão | C21: 14.00 € | D21: 4 | E21: 6 | F21: =(TabelaComida[[#This Row],[PORÇÃO POR CRIANÇA]]*TotalCrianças)+(TabelaComida[[#This Row],[PORÇÃO POR ADULTO]]*TotalAdultos) -> 236 | G21: =IFERROR(TabelaComida[[#This Row],[CUSTO TOTAL]]/TabelaComida[[#This Row],[TOTAL DE PORÇÕES]],"") -> 0.06 € | H21: =IFERROR(TabelaComida[[#This Row],[CUSTO POR PORÇÃO]]*TabelaComida[[#This Row],[PORÇÃO POR CRIANÇA]],"") -> 0.24 € | I21: =IFERROR(TabelaComida[[#This Row],[CUSTO POR PORÇÃO]]*TabelaComida[[#This Row],[PORÇÃO POR ADULTO]],"") -> 0.36 € | J21: Fazer na noite anterior
B22: Legumes sortidos | C22: 30.00 € | D22: 4 | E22: 10 | F22: =(TabelaComida[[#This Row],[PORÇÃO POR CRIANÇA]]*TotalCrianças)+(TabelaComida[[#This Row],[PORÇÃO POR ADULTO]]*TotalAdultos) -> 340 | G22: =IFERROR(TabelaComida[[#This Row],[CUSTO TOTAL]]/TabelaComida[[#This Row],[TOTAL DE PORÇÕES]],"") -> 0.09 € | H22: =IFERROR(TabelaComida[[#This Row],[CUSTO POR PORÇÃO]]*TabelaComida[[#This Row],[PORÇÃO POR CRIANÇA]],"") -> 0.35 € | I22: =IFERROR(TabelaComida[[#This Row],[CUSTO POR PORÇÃO]]*TabelaComida[[#This Row],[PORÇÃO POR ADULTO]],"") -> 0.88 € | J22: Palitos de cenoura, aipo, brócolos, couve-flor, pimentos vermelhos e verdes
B23: Queijo | C23: 15.00 € | D23: 5 | E23: 10 | F23: =(TabelaComida[[#This Row],[PORÇÃO POR CRIANÇA]]*TotalCrianças)+(TabelaComida[[#This Row],[PORÇÃO POR ADULTO]]*TotalAdultos) -> 360 | G23: =IFERROR(TabelaComida[[#This Row],[CUSTO TOTAL]]/TabelaComida[[#This Row],[TOTAL DE PORÇÕES]],"") -> 0.04 € | H23: =IFERROR(TabelaComida[[#This Row],[CUSTO POR PORÇÃO]]*TabelaComida[[#This Row],[PORÇÃO POR CRIANÇA]],"") -> 0.21 € | I23: =IFERROR(TabelaComida[[#This Row],[CUSTO POR PORÇÃO]]*TabelaComida[[#This Row],[PORÇÃO POR ADULTO]],"") -> 0.42 € | J23: Sortido: queijo creme, queijo picante com nozes
B24: Biscoitos | C24: 25.00 € | D24: 5 | E24: 10 | F24: =(TabelaComida[[#This Row],[PORÇÃO POR CRIANÇA]]*TotalCrianças)+(TabelaComida[[#This Row],[PORÇÃO POR ADULTO]]*TotalAdultos) -> 360 | G24: =IFERROR(TabelaComida[[#This Row],[CUSTO TOTAL]]/TabelaComida[[#This Row],[TOTAL DE PORÇÕES]],"") -> 0.07 € | H24: =IFERROR(TabelaComida[[#This Row],[CUSTO POR PORÇÃO]]*TabelaComida[[#This Row],[PORÇÃO POR CRIANÇA]],"") -> 0.35 € | I24: =IFERROR(TabelaComida[[#This Row],[CUSTO POR PORÇÃO]]*TabelaComida[[#This Row],[PORÇÃO POR ADULTO]],"") -> 0.69 € | J24: Sortido
B25: Total | C25: =SUBTOTAL(109,TabelaComida[CUSTO TOTAL]) -> 475.00 € | D25: =SUBTOTAL(109,TabelaComida[PORÇÃO POR CRIANÇA]) -> 34.5 | E25: =SUBTOTAL(109,TabelaComida[PORÇÃO POR ADULTO]) -> 65.5 | F25: =SUBTOTAL(109,TabelaComida[TOTAL DE PORÇÕES]) -> 2393 | G25: =SUBTOTAL(109,TabelaComida[CUSTO POR PORÇÃO]) -> 6.92 € | H25: =SUBTOTAL(109,TabelaComida[CUSTO POR CRIANÇA]) -> 7.25 € | I25: =SUBTOTAL(109,TabelaComida[CUSTO POR ADULTO]) -> 12.69 €

Sheet Outros Elementos Essenciais
B3: Outros Elementos Essenciais
B6: Equipamento e Consumíveis | C6: Custo | D6: Adquirido | E6: Notas
B7: Aluguer de sala/salão | C7: 250.00 € | D7: Sim
B8: Toalhas de mesa | C8: 30.00 € | D8: Sim | E8: Aluguer
B9: Mesas e cadeiras | C9: 0.00 € | E9: Incluído no aluguer do salão
B10: Guardanapos para bebidas | C10: 25.00 €
B11: Guardanapos para comida | C11: 20.00 € | E11: Aluguer
B12: Serviço à mesa | C12: 50.00 € | E12: Aluguer
B13: Peças de vidro | C13: 25.00 € | E13: Aluguer
B14: Total | C14: =SUBTOTAL(109,Tabela1Orçamento[Custo]) -> 400.00 €
B17: Decorações | C17: Custo | D17: Adquirido | E17: Notas
B18: Balões | C18: 25.00 €
B19: Barril de hélio | C19: 50.00 € | E19: Aluguer
B20: Centros de mesa | C20: 100.00 € | D20: Sim | E20: Total 10
B21: Vasos de vidro | C21: 0.00 € | E21: Emprestado da Paula
B22: Total | C22: =SUBTOTAL(109,Tabela2Orçamento[Custo]) -> 175.00 €
B25: Outros | C25: Custo | D25: Adquirido | E25: Notas
B26: Convites | C26: 50.00 € | D26: Sim
B27: Portes | C27: 60.00 € | D27: Sim
B28: Fotógrafo | C28: 125.00 € | E28: 2 horas (14:00 - 16:00)
B29: Brindes | C29: 50.00 €
B30: Total | C30: =SUBTOTAL(109,Tabela3Orçamento[Custo]) -> 285.00 €

Sheet Grelha Distribuição de Assentos
A1: Distribuição de Assentos
AH35: *1 quadrado= aproximadamente 0,1 metros quadrados
A36: Notas | T36: =" Total de convidados confirmados: "&ConvidadosConfirmados -> Total de convidados confirmados: 46
T37: Pode utilizar qualquer umas das seguintes configurações de mesas:
U38: =ROUNDUP(ConvidadosConfirmados/6,0)&" mesas redondas de 137 centímetros (6 lugares)" -> 8 mesas redondas de 137 centímetros (6 lugares)
U39: =ROUNDUP(ConvidadosConfirmados/8,0) &"mesas redondas de 152 centímetro (8 lugares)" -> 6mesas redondas de 152 centímetro (8 lugares)
U40: =ROUNDUP(ConvidadosConfirmados/10,0)&" mesas redondas de 182 centímetros (10 lugares)" -> 5 mesas redondas de 182 centímetros (10 lugares)
U41: =ROUNDUP(ConvidadosConfirmados/6,0)& " mesas quadradas de 76x182 centímetros (6 lugares)" -> 8 mesas quadradas de 76x182 centímetros (6 lugares)
U42: =ROUNDUP(ConvidadosConfirmados/8,0)&" mesas quadradas de 76x243 centímetros (8 lugares)" -> 6 mesas quadradas de 76x243 centímetros (8 lugares)
T43: (Espaço preferencial entre as mesas: 1 m)
